Cogmind - Beta 17 @@@ ROGUE MODE // 2026.07.09 @ 02:54:30 Player: ChCbias Result: Destroyed by J5-HHB(R) with Subdweller Beam Cannon Performance ------------- Evolutions (0) 0 Regions Visited (2) 400 Robots Destroyed (24) 120 Value Destroyed (417) 417 Prototype IDs (0) 0 Alien Tech Used (0) 0 Bonus (0) 0 TOTAL SCORE: 937 Bonus ------- None Cogmind --------- Core Integrity 0/250 Matter 228/300 Energy 100/100 System Corruption 0% Temperature Cool (9) Movement Rolling (100) Location -10/Subcaves Parts ------- > --- POWER (1) -------- (None) > --- PROPULSION (2) --- Compact Wheel > --- UTILITY (2) ------ Medium Storage Unit > --- WEAPON (2) ------- Light Assault Rifle Subdweller Machine Gun > --- INVENTORY (10) --- Ion Engine Aluminum Leg Wheel Sensor Array Signal Interpreter Particle Gun Light EM Pulse Cannon Grenade Launcher Flamer Peak State ------------ > --- POWER ------------ Light Ion Engine > --- PROPULSION ------- Light Treads Compact Wheel > --- UTILITY ---------- Medium Storage Unit Medium Armor Plating > --- WEAPON ----------- Medium Laser Subdweller Machine Gun > --- INVENTORY -------- Ion Engine Aluminum Leg Wheel Sensor Array Sensor Array Signal Interpreter Particle Gun Light EM Pulse Cannon Light Assault Rifle Grenade Launcher [Rating: 10] Favorites ----------- Power Light Ion Engine Engine Light Ion Engine Propulsion Light Treads Treads Light Treads Wheel Compact Wheel Utility Medium Storage Unit Storage Medium Storage Unit Protection Medium Armor Plating Weapon Medium Laser Energy Gun Medium Laser Ballistic Gun Assault Rifle Build | -11 -10 -10 ------- Run | Yrd Mat Sub Slots Evolved . | . . . Power . | . . . Propulsion . | . . . Utility . | . . . Weapon . | . . . Parts Attached 14 | 7 6 1 Power 2 | 1 1 . Engine 2 | 1 1 . Core . | . . . Reactor . | . . . Propulsion 3 | 2 1 . Treads 2 | 2 . . Leg . | . . . Wheel 1 | . 1 . Hover . | . . . Flight . | . . . Utility 4 | 1 3 . Device . | . . . Storage 2 | 1 1 . Processor . | . . . Hackware . | . . . Protection 2 | . 2 . Artifact . | . . . Weapon 5 | 3 1 1 Energy Gun 2 | 1 1 . Energy Cannon . | . . . Ballistic Gun 3 | 2 . 1 Ballistic Cannon . | . . . Launcher . | . . . Special Weapon . | . . . Impact Weapon . | . . . Slashing Weapon . | . . . Piercing Weapon . | . . . Special Melee Weapon . | . . . Unidentified Prototypes . | . . . Parts Lost 6 | . 2 4 Power 2 | . 1 1 Propulsion 2 | . 1 1 Utility 1 | . . 1 Weapon 1 | . . 1 Highest Loss Streak 4 | . 1 4 To Critical Strikes 1 | . 1 . Average Backups 8 | 3 8 10 Power . | . 1 1 Propulsion 2 | 2 3 2 Utility 2 | . 1 2 Weapon 2 | . 2 4 Tool/Special . | . . . Unused Backups 10 | . 1 9 Power 1 | . . 1 Propulsion 3 | . 1 2 Utility 3 | . . 3 Weapon 3 | . . 3 Tool/Special . | . . . Average Slot Usage (%) 91 | . 88 98 Engine 13 | . 13 13 Treads 21 | . 24 13 Wheel 4 | . . 14 Storage 14 | . 14 14 Protection 8 | . 6 13 Energy Gun 17 | . 18 13 Ballistic Gun 10 | . 9 14 Peak Build Rating 10 | 6 9 10 Average Rating 7 | 4 7 9 On Entrance 5 | . 6 9 Avg Prop Armor Cover (%) 8 | . 8 8 Naked Turns . | . . . Heaviest Build 26 | 12 24 26 Greatest Support 40 | 40 40 16 Greatest Overweight (x) 1 | . 1 1 Average Overweight (x) . | . . 1 Largest Inventory Capacity 10 | 8 10 10 Average Capacity 9 | 6 9 10 Most Carried 10 | 6 10 10 Average Carried 8 | 3 8 9 Final Capacity 10 | 8 10 10 Final Carried 10 | 6 10 9 Class Distribution -------------------- 100% | Mutant Dominant Class ---------------- Mutant | -10/Materials Mutant | -10/Subcaves Resources | -11 -10 -10 ----------- Run | Yrd Mat Sub Matter Collected 408 | 269 139 . Remotely . | . . . Salvage Created 700 | . 641 59 Parts 54 | . 49 5 Haulers Intercepted 2 | . 2 . Recyclers Shooed 1 | . 1 . Parts Field Recycled . | . . . Retrieved Matter . | . . . Parts Self-Destructed . | . . . Prevented . | . . . Parts Restored . | . . . Kills | -11 -10 -10 ------- Run | Yrd Mat Sub Combat Hostiles Destroyed 14 | . 12 2 Guns 14 | . 12 2 Classes Destroyed 8 | . 7 1 Worker 2 | . 2 . Builder 2 | . 2 . Hauler 2 | . 2 . Recycler 2 | . 2 . Watcher 2 | . 2 . Swarmer 6 | . 6 . Grunt 6 | . 6 . Subdweller 2 | . . 2 Best Kill Streak 5 | . 5 2 Combat Bots Only 3 | . 3 2 Max Kills in Single Turn 1 | . 1 1 Gunslinging . | . . . Exploded . | . . . Melee . | . . . Uniques/NPCs Destroyed . | . . . Combat | -11 -10 -10 -------- Run | Yrd Mat Sub Hostile Shots Fired 97 | . 75 22 Missed 23 | . 18 5 Hits 74 | . 57 17 Projectile 74 | . 57 17 Critical Strikes 1 | . 1 . Damage Taken 961 | . 550 411 Core 250 | . 112 138 Absorbed by Shields . | . . . Core Remaining (%) 100 | 100 . . Volleys Fired 75 | . 64 11 Largest 2 | . 2 2 Hottest 115 | . 115 80 Shots Fired 142 | . 120 22 Gun 142 | . 120 22 Cannon . | . . . Launcher . | . . . Special . | . . . Kinetic 54 | . 40 14 Thermal 88 | . 80 8 Explosive . | . . . Electromagnetic . | . . . Robot Hit Streak 25 | . 11 25 Robot Miss Streak 4 | . 4 . Penetration Max . | . . . Secondary Targets 2 | . 1 1 Max Gunslinging Chain 1 | . 1 1 Shots Hit Robots 92 | . 70 22 Core Hits 37 | . 32 5 Critical Kills . | . . . Critical Parts Destroyed . | . . . Critical Strikes 3 | . 1 2 Burn 2 | . 1 1 Destroy 1 | . . 1 Melee Attacks . | . . . Impact . | . . . Slashing . | . . . Piercing . | . . . Sneak Attacks . | . . . Combat Hostiles . | . . . Follow-up Attacks . | . . . Damage Inflicted 1348 | . 998 350 Guns 1342 | . 992 350 Cannons . | . . . Explosions . | . . . Melee . | . . . Ramming 6 | . 6 . Kinetic 558 | . 307 251 Thermal 784 | . 685 99 Explosive . | . . . Electromagnetic . | . . . Impact . | . . . Slashing . | . . . Piercing . | . . . Highest Corruption . | . . . Average Corruption . | . . . Corruption Purged . | . . . Corruption Blocked . | . . . Overload Shots . | . . . Overflow Damage . | . . . Projectiles . | . . . Explosions . | . . . Melee . | . . . Knockbacks . | . . . Impact . | . . . Kinetic . | . . . Secondary . | . . . Self-Inflicted Damage . | . . . Shots . | . . . Rammed . | . . . Targets Rammed 1 | . 1 . Kicked . | . . . Crushed 1 | . 1 . Highest Temperature 394 | . 394 . Average Temperature 106 | . 106 . Received Heat Transfer 261 | . 165 96 Effects 2 | . 2 . Energy Bleed 1 | . 1 . Interference 1 | . 1 . Siege Activations . | . . . Martial Activations . | . . . Shielding Activations . | . . . Robots Disrupted . | . . . Combat Hostiles . | . . . Robots Corrupted . | . . . Combat Hostiles . | . . . Parts Fried . | . . . Impact Corruptions . | . . . Robots Melted . | . . . Combat Hostiles . | . . . Parts Melted 4 | . 4 . Heat Transferred 2331 | . 1961 370 Parts Sabotaged . | . . . Parts Stolen . | . . . Parts Stripped . | . . . Power Chain Reactions . | . . . Alert | -11 -10 -10 ------- Run | Yrd Mat Sub Maximum Alert Level . | . . . Low Security (%) 100 | 100 100 . Level 1 . | . . . Level 2 . | . . . Level 3 . | . . . Level 4 . | . . . Level 5 . | . . . High Security . | . . . Max Security . | . . . Peak Influence 89 | . 89 . Initial . | . . . Average 26 | . 29 . Influence Increases 373 | . 373 . Destroy 0b10 Robot/C 240 | . 240 . Destroy 0b10 Robot/NC 50 | . 50 . Destroy Leader 38 | . 38 . Successful Hack 41 | . 41 . Destroy Structure 4 | . 4 . Influence Decreases 373 | . 373 . Time Decay 353 | . 353 . Lost Part 20 | . 20 . Squads Dispatched 1 | . 1 . Investigation 1 | . 1 . Extermination . | . . . Reinforcement . | . . . Assault . | . . . Garrison . | . . . Intercept . | . . . Searches Triggered . | . . . Construction Impeded . | . . . Haulers Reinforced . | . . . Active Scanning Responses . | . . . Cargo Convoy Interrupts . | . . . Stealth | -11 -10 -10 --------- Run | Yrd Mat Sub Distress Signals . | . . . Communications Jammed . | . . . Distress Signals . | . . . Times Spotted 25 | . 22 3 Peak Tracking Total 4 | . 4 2 Tactical Retreats . | . . . Traps | -11 -10 -10 ------- Run | Yrd Mat Sub Traps Triggered . | . . . Indirectly . | . . . Trap Hack Attempts . | . . . Triggered . | . . . Disarmed . | . . . Reprogrammed . | . . . Reused . | . . . Traps Extracted . | . . . Installed . | . . . Triggered . | . . . Machines | -11 -10 -10 ---------- Run | Yrd Mat Sub Machines Disabled . | . . . Max in Single Turn . | . . . Machines Repaired . | . . . Machines Dismantled . | . . . Machines Sabotaged . | . . . Overloaded Fab Kills . | . . . Hacking | -11 -10 -10 --------- Run | Yrd Mat Sub Machines Accessed 8 | . 8 . Terminals 8 | . 8 . Fabricators . | . . . Repair Stations . | . . . Recycling Units . | . . . Scanalyzers . | . . . Garrison Access . | . . . Total Hacks 23 | . 23 . Successful 14 | . 14 . Failed 9 | . 9 . Catastrophic 2 | . 2 . Database Lockouts . | . . . Manual 17 | . 17 . Terminals 23 | . 23 . Fabricators . | . . . Repair Stations . | . . . Recycling Units . | . . . Scanalyzers . | . . . Garrison Access . | . . . Terminal Hacks 11 | . 11 . Part Schematic 2 | . 2 . Robot Analysis 3 | . 3 . Level Access Points 1 | . 1 . Alert Level 1 | . 1 . Locate Traps 1 | . 1 . Dispatch Records 1 | . 1 . Transport Status 1 | . 1 . Registered Components 1 | . 1 . Fabricator Hacks . | . . . Repair Station Hacks . | . . . Recycling Unit Hacks . | . . . Scanalyzer . | . . . Garrison Access Hacks . | . . . Unauthorized Hacks 3 | . 3 . Terminals 3 | . 3 . Botnet 3 | . 3 . Fabricators . | . . . Repair Stations . | . . . Recycling Units . | . . . Scanalyzers . | . . . Garrison Access . | . . . Data Cores Recovered . | . . . Used . | . . . Hacking Detections 8 | . 8 . Full Trace Events 1 | . 1 . Feedback Events . | . . . Feedback Blocked . | . . . Robot Schematics Acquired . | . . . Robots Built . | . . . Authchips . | . . . Time . | . . . Total Robot Build Rating . | . . . Part Schematics Acquired 2 | . 2 . Parts Built . | . . . Authchips . | . . . Time . | . . . Total Part Build Rating . | . . . Part Studies Acquired . | . . . Parts Repaired . | . . . Time . | . . . Parts Recycled . | . . . Recycled Matter . | . . . Retrieved Matter . | . . . Retrieved Components . | . . . Parts Scanalyzed . | . . . Part Schematics Acquired . | . . . Parts Damaged . | . . . Bothacking | -11 -10 -10 ------------ Run | Yrd Mat Sub Used RIF Installer . | . . . Robots Hacked . | . . . Non-combat . | . . . Combat . | . . . Robot Hacks Applied . | . . . Relay Couplers Released . | . . . Fabnet Peak Effective % . | . . . Robots Rewired . | . . . Allies Hacked . | . . . Hacks Repelled . | . . . Allies | -11 -10 -10 -------- Run | Yrd Mat Sub Total Allies . | . . . Largest Group . | . . . Highest-Rated Group . | . . . Highest-Rated Ally . | . . . Total Orders . | . . . Ally Attacks . | . . . Total Damage . | . . . Kills . | . . . Allies Corrupted . | . . . Allies Melted . | . . . Intel | -11 -10 -10 ------- Run | Yrd Mat Sub Active Infowar (turns) . | . . . Robot Analysis Total 3 | . 3 . Derelict Logs Recovered . | . . . Drone Launches . | . . . Drone Recoveries . | . . . Exploration | -11 -10 -10 ------------- Run | Yrd Mat Sub Turns Passed 1604 | 116 1074 414 Spaces Moved 934 | 66 553 315 Core 4 | 4 . . Treads 554 | 62 492 . Legs . | . . . Wheels 376 | . 61 315 Hover . | . . . Flight . | . . . Fastest Speed 50 | 50 115 115 Average Speed 141 | 153 155 115 Slowest Speed 160 | 160 160 115 Overloaded Moves . | . . . Propulsion Burnouts . | . . . Robots Hopped . | . . . Potential Cave-ins . | . . . Cave-ins Triggered . | . . . Exploration Rate (%) 35 | 4 84 17 Regions Visited 2 Branch Regions 1 Pre-discovered Areas . | . . . Known Exits Taken . | . . . Unknown Exits Taken 2 | 1 1 . Scrap Searched . | . . . Spaces Dug . | . . . Terrain Destroyed . | . . . Melee . | . . . Projectile . | . . . AOE . | . . . Terrain Rammed . | . . . Walls Destroyed . | . . . Machines Disabled . | . . . Actions | -11 -10 -10 --------- Run | Yrd Mat Sub Total 1071 | 77 648 346 Wait 30 | . 15 15 Move 932 | 65 552 315 Hop . | . . . Pick Up 11 | 5 5 1 Fast Attach 12 | 6 5 1 Attach 2 | . 1 1 Detach 1 | . 1 . Swap 2 | 1 1 . Drop 5 | . 3 2 Fire 75 | . 64 11 Melee . | . . . Ram . | . . . Kick . | . . . Crush 1 | . 1 . Escape Stasis . | . . . Rewire . | . . . Trap . | . . . Miscellaneous . | . . . Route ------- -11/Scrapyard -10/Materials (discovered 5 exits: *Mat x3 / [*Min] / [*Sub]) -10/Subcaves (discovered 1 exit: [*Mat]) History --------- Turn | Location | Event 52 | -11/Scrapyard | Discovered new exit (range 15) 117 | -11/Scrapyard | Entered Materials 317 | -10/Materials | Build established: Mutant 433 | -10/Materials | Discovered new exit (range 13) 444 | -10/Materials | Identified exit to Materials 748 | -10/Materials | Discovered new exit (range 12) 1043 | -10/Materials | Discovered new exit (range 10) 1191 | -10/Materials | Entered Subcaves 1488 | -10/Subcaves | Discovered new exit (range 15) 1489 | -10/Subcaves | Shifting Twisted Machinery released Sub. Machine Gun 1513 | -10/Subcaves | Shifting Twisted Machinery released Flamer 1551 | -10/Subcaves | Ambushed by Subdwellers from Twisted Machinery 1589 | -10/Subcaves | Core integrity fell below 50% 1599 | -10/Subcaves | Core integrity fell below 20% 1605 | -10/Subcaves | Destroyed by J5-HHB(R) with Subdweller Beam Cannon Last Messages --------------- 01495_ Acquired Sub. Machine Gun. 01499_ Subatomizers dissect the Assault Rifle. Flamer falls loose from the Twisted Machinery. 01513_ Subatomizers dissect the Assault Rifle. 01520_ Dropped Sensor Array. 01520_ Acquired Flamer. 01574_ XP-277(R) destroyed. 01576_ Subatomizers dissect the Sub. Optics. 01581_ Lgt. Treads destroyed. 01584_ GG-CEZ(R) suffers critical hit (Burn). 01586_ Med. Armor Plating destroyed. 01588_ Subatomizers dissect the Sub. Optics. 01590_ Lgt. Ion Engine destroyed. 01593_ GG-CEZ(R) destroyed. 01593_ Switching to secondary target: J5-HHB(R). 01596_ Med. Laser destroyed. 01598_ Subatomizers dissect the Sub. Optics. 01603_ J5-HHB(R) suffers critical hit (Destroy). 01604_ J5-HHB(R) affixes Scrap Shield Fragment to Scrap Shield. Map ----- +----------------------------------------------------+ | ?????????????????????????????????????????????????? | | ?????????????????????????????????????????????????? | | ?????????????????????????????????????????????????? | | ?????????????????????????????????????????????????? | | ?????????????????????????????????????????????????? | | ?????????????????????????????????????????????????? | | ?????????????????????????????????????????????????? | | ????????????????????????????? ? ?????????????????? | | ????????????????????????????? ????????????????? | | ???????????????????????????? ???????????????? | | ???????????????????????????? """???????????????? | | ???????????????????????????? ????????????????? | | ???????????????????????????# #????????????????? | | ??????????????????????????? #????????????????? | | ??????????????????????????? #????????????????? | | ??????????????????????????# #????????????????? | | ?????????????????????????? #????????????????? | | ????????????????????????## #?????????????????? | | ?????????????????????#### #??? ?????????? | | ##??????????????????## ## #???????????? | | ##??????############ #????????????? | | #??????# " #"## #????????????? | | ######## " """ #### #?????????? | | ## ## " "" !!####???????? ??????????? | | [ "" !## R%##??????????????????????? | | < #### [&@####???????????????????? | | #### ##### #?### [ #???????????????????? | | ##### ##???### #???# #???????????????????? | | # ##??????###?# #???????????????????? | | #???????????# #;#???????????????????? | | ## ####???????????##########???????????????????? | | ?#####???????????????????????????????????????????? | | # #??????????????????????????????????????????????? | | #??????????????????????????????????????????????? | | #???????????????????????????????????????????????? | | #???????????????????????????????????????????????? | | #???????????????????????????????????????????????? | | ##???????????????????????????????????????????????? | | ##???????????????????????????????????????????????? | | #???????????????????????????????????????????????? | | #??????????????????????????????????????????????? | | #??????????????????????????????????????????????? | | ##??????????????????????????????????????????????? | | ##???????????????????????????????????????????????? | | ?????????????????????????????????????????????????? | | ?????????????????????????????????????????????????? | | ?????????????????????????????????????????????????? | | ?????????????????????????????????????????????????? | | ?????????????????????????????????????????????????? | | ?????????????????????????????????????????????????? | +----------------------------------------------------+ Best States ------------- Heat Dissipation 25 Energy Generation 10 Energy Capacity 125 Matter Stores 300 Matter Capacity 300 Sight Range 16 Terrain Scan Density 10 Armor Coverage 225 Evasion (%) 40 Recoil Reduction 2 Item Schematics ----------------- Lgt. Treads | -10/Materials | Hacked ECM Suite | -10/Materials | Hacked Robot Schematics ------------------ None Fabricated ------------ Nothing Repaired ---------- Nothing Studied --------- None Alien Tech Used ----------------- None Achievements -------------- None Challenges ------------ None Game ------ Seed LargeHybridHoverbase Manual? 0 Play Time 00:15:33 Cumulative 37.3 hours Start 2026.07.09 @ 02:21:25 End 2026.07.09 @ 02:54:30 Sessions 1 Manual Loads 0 Difficulty Rogue Special Mode None Game No. 30 Rogue 30 Adventurer 0 Explorer 0 Win Type - Total 0 Types 0/0/0/0/0/0/0/0/0/0 Lore% 26 Gallery% 27 Achievement% 28 Wizard Run 0 Options --------- Layout 1 ASCII 0 Keyboard 0 Movement Mouse Keybinds 0 Fullscreen 1 Font 24/Smallcaps Map View 50x35 Zoom Use 0% Tactical HUD 1 Map Filters NONE Filters NONE Steam 1 RUN: 0bd17ebf-20b7-462d-840d-453d1eb2ea3e